bitfinex/quotes_SOLUSD_20260309
["timestamp","ask_amount","ask_price","bid_price","bid_amount"]
[1773055623606,0.4833799,83.336,83.312,0.4758165]
[1773055625714,0.4833799,83.336,83.314,0.4758165]
[1773055628790,0.4833799,83.336,83.315,12.00264058]
[1773055628996,0.4833799,83.336,83.316,0.4758165]
[1773055629701,4.90976788,83.35,83.316,0.4758165]
[1773055629910,4.90976788,83.35,83.315,42.00924203]
[1773055629911,0.4833799,83.35,83.321,0.4758165]
[1773055630417,0.4833799,83.35,83.315,42.00924203]
[1773055630418,0.4833799,83.369,83.331,0.4758165]
[1773055630600,0.4833799,83.366,83.331,0.4758165]
[1773055630918,11.99544173,83.365,83.332,12.000192]
[1773055631114,4.42638798,83.36,83.333,0.4758165]
[1773055631308,0.4833799,83.359,83.333,0.4758165]
[1773055634099,0.4833799,83.357,83.334,11.999904]
[1773055634515,0.4833799,83.357,83.33,12.00034927]
[1773055634713,11.99644905,83.358,83.321,12.47759276]
[1773055634714,0.4833799,83.349,83.321,12.47759276]
[1773055635603,0.4833799,83.349,83.322,0.4758165]
[1773055636203,0.4833799,83.339,83.311,12.00321686]
[1773055636510,0.4833799,83.339,83.311,12.47903336]
[1773055637927,0.4833799,83.337,83.311,12.47903336]
[1773055638229,0.4833799,83.337,83.312,0.4758165]
[1773055639223,0.4833799,83.337,83.313,12.47874521]
[1773055639828,0.4833799,83.337,83.314,0.4758165]
[1773055640021,0.4833799,83.346,83.314,0.4758165]
[1773055642814,4.42638798,83.34,83.315,12.00264058]
[1773055643018,4.42638798,83.34,83.304,30.01037303]
[1773055643019,0.4833799,83.339,83.305,0.4758165]
[1773055643832,0.4833799,83.339,83.306,0.4758165]
[1773055646016,11.99932803,83.338,83.308,0.4758165]
[1773055646324,0.4833799,83.337,83.308,0.4758165]
[1773055647337,0.4833799,83.345,83.308,0.4758165]
[1773055647639,0.4833799,83.35,83.311,0.4758165]
[1773055647814,0.4833799,83.35,83.321,0.4758165]
[1773055648513,0.4833799,83.35,83.323,0.4758165]
[1773055649535,3.97815716,83.373,83.322,12.00163222]
[1773055649536,0.4833799,83.363,83.331,0.4758165]
[1773055651923,0.4833799,83.361,83.333,0.4758165]
[1773055654534,0.49949397,83.359,83.334,12.48397146]
[1773055655038,0.49949397,83.359,83.334,11.999904]
[1773055655237,0.49949397,83.359,83.335,0.48406746]
[1773055655942,0.49949397,83.359,83.336,12.48368347]
[1773055657914,0.49949397,83.359,83.337,0.48406746]
[1773055658121,0.49949397,83.369,83.341,0.48406746]
[1773055658650,0.49949397,83.369,83.351,0.48406746]
[1773055658817,0.49949397,83.377,83.351,0.48406746]
[1773055659024,0.49949397,83.399,83.361,0.48406746]
[1773055659224,0.49949397,83.398,83.371,0.48406746]
[1773055660941,0.49949397,83.396,83.371,12.47858661]
[1773055661841,0.49949397,83.396,83.371,11.99451915]
[1773055663443,0.49949397,83.396,83.365,0.48406746]
[1773055663444,0.49949397,83.394,83.367,0.48406746]
[1773055663649,0.49949397,83.389,83.363,0.48406746]
[1773055664024,0.49949397,83.389,83.364,11.99558562]
[1773055664639,0.49949397,83.389,83.365,0.48406746]
[1773055664833,0.49949397,83.389,83.36,4.42638798]
[1773055665041,0.49949397,83.379,83.351,11.99745653]
[1773055665537,0.49949397,83.377,83.351,11.99745653]
[1773055665753,0.49949397,83.377,83.35,12.48157672]
[1773055665948,0.49949397,83.377,83.351,0.49593709]
[1773055667560,0.48722076,83.375,83.352,12.49324969]
[1773055667776,0.48722076,83.375,83.346,11.99804254]
[1773055667932,0.48722076,83.369,83.346,11.99804254]
[1773055671034,0.48722076,83.369,83.347,0.49593709]
[1773055671752,0.48722076,83.367,83.346,11.99804254]
[1773055673459,0.48722076,83.367,83.347,0.49593709]
[1773055676459,0.48722076,83.367,83.349,0.49593709]
[1773055676662,0.48722076,83.372,83.351,0.49593709]
[1773055677462,0.48722076,83.372,83.348,11.99788837]
[1773055677762,0.48722076,83.369,83.341,11.9988961]
[1773055677940,0.48722076,83.369,83.284,48.02810141]
[1773055677941,0.48722076,83.369,83.331,12.000336]
[1773055678140,0.48722076,83.369,83.332,0.49593709]
[1773055678346,0.48722076,83.367,83.334,0.49593709]
[1773055679868,0.48722076,83.365,83.336,0.49593709]
[1773055682877,0.48722076,83.363,83.338,0.49593709]
[1773055683950,0.48722076,83.363,83.34,4.88269686]
[1773055684147,0.48722076,83.363,83.341,0.45630888]
[1773055684879,0.49420795,83.361,83.341,0.45630888]
[1773055685077,0.49420795,83.361,83.336,12.45584269]
[1773055685547,4.42495466,83.35,83.323,12.00148818]
[1773055685751,0.49420795,83.349,83.323,12.00148818]
[1773055687462,0.49420795,83.347,83.323,12.00148818]
[1773055688153,0.49420795,83.347,83.324,0.45630888]
[1773055690172,0.49420795,83.347,83.325,12.00120012]
[1773055690371,0.49420795,83.347,83.325,12.457509]
[1773055692074,0.49420795,83.345,83.325,12.457509]
[1773055693369,0.49420795,83.345,83.326,0.45630888]
[1773055694678,0.49420795,83.345,83.327,12.00091206]
[1773055702167,0.49420795,83.343,83.321,12.45808514]
[1773055702371,0.49420795,83.343,83.321,12.00177626]
[1773055704087,0.49420795,83.329,83.291,0.45630888]
[1773055704287,0.49420795,83.327,83.293,0.45630888]
[1773055704588,0.49420795,83.327,83.301,0.45630888]
[1773055706574,0.49420795,83.325,83.296,0.45630888]
[1773055707874,0.49420795,83.323,83.297,12.00523428]
[1773055708082,0.49420795,83.323,83.298,0.45630888]
[1773055709489,4.42495466,83.32,83.293,0.45630888]
[1773055709693,0.49420795,83.319,83.288,12.46277793]
[1773055710083,0.49420795,83.317,83.288,12.46277793]
[1773055710396,0.49420795,83.317,83.249,3.69383402]
[1773055710397,0.49420795,83.299,83.275,0.45630888]
[1773055710576,0.49420795,83.299,83.275,12.00836942]
[1773055710776,0.49420795,83.299,83.271,12.46524026]
[1773055712080,0.28432314,83.313,83.27,0.1]
[1773055712081,0.49420795,83.289,83.27,0.1]
[1773055712388,0.49420795,83.289,83.271,0.45630888]
[1773055713088,0.49420795,83.289,83.27,0.1]
[1773055713695,42.01781554,83.298,83.269,13.08061774]
[1773055713696,0.46500984,83.279,83.269,13.08061774]
[1773055713880,0.46500984,83.279,83.26,0.1]
[1773055714074,0.46500984,83.279,83.262,0.4727419]
[1773055714893,0.46500984,83.285,83.262,0.4727419]
[1773055715093,0.46500984,83.279,83.26,0.1]
[1773055716080,0.46500984,83.269,83.26,0.1]
[1773055718582,4.42495466,83.27,83.25,0.1]
[1773055718583,0.46500984,83.267,83.25,0.1]
[1773055719701,0.46500984,83.271,83.251,0.4727419]
[1773055720905,0.46500984,83.286,83.252,0.4727419]
[1773055721280,4.42495466,83.29,83.261,0.4727419]
[1773055721798,0.46500984,83.297,83.271,0.4727419]
[1773055724095,4.42495466,83.3,83.271,0.4727419]
[1773055724096,0.46500984,83.295,83.272,12.0088385]
[1773055724306,0.46500984,83.295,83.271,0.4727419]
[1773055724699,0.4531639,83.289,83.267,12.00942759]
[1773055724900,0.4531639,83.289,83.268,0.48419062]
[1773055725308,0.4531639,83.289,83.267,12.00942759]
[1773055727006,12.00649804,83.289,83.257,0.48419062]
[1773055727313,12.00649804,83.289,83.261,0.48419062]
[1773055727713,12.45966194,83.289,83.261,0.48419062]
[1773055729103,12.4590845,83.293,83.263,0.48419062]
[1773055729303,0.4531639,83.292,83.263,0.48419062]
[1773055731213,12.00489133,83.3,83.271,0.48419062]
[1773055731597,12.45747493,83.304,83.28,4.42495466]
[1773055731801,12.0036491,83.308,83.281,0.48419062]
[1773055731997,0.4531639,83.307,83.281,0.48419062]
[1773055733714,12.00393729,83.306,83.281,12.00741373]
[1773055734018,12.00393729,83.306,83.282,0.48419062]
[1773055734019,0.4531639,83.305,83.282,0.48419062]
[1773055735119,12.00393729,83.306,83.284,0.48419062]
[1773055735348,12.45710119,83.306,83.284,0.48419062]
[1773055735825,0.4531639,83.305,83.284,0.48419062]
[1773055736026,12.00393729,83.306,83.284,0.48419062]
[1773055736205,0.4531639,83.305,83.284,0.48419062]
[1773055737327,0.4531639,83.308,83.286,0.48419062]
[1773055739527,12.45695709,83.307,83.286,0.48419062]
[1773055739708,0.4531639,83.306,83.286,0.48419062]
[1773055740443,0.4531639,83.306,83.281,0.48419062]
[1773055740609,12.00379319,83.307,83.271,12.49317333]
[1773055740610,0.4531639,83.299,83.271,12.49317333]
[1773055740808,0.4531639,83.299,83.272,0.48419062]
[1773055743931,0.47745795,83.297,83.274,0.4812852]
[1773055745014,0.47745795,83.297,83.273,12.00869429]
[1773055745531,0.47745795,83.297,83.274,0.4812852]
[1773055745830,12.0053784,83.296,83.274,0.4812852]
[1773055746018,0.47745795,83.295,83.274,0.4812852]
[1773055750151,0.47745795,83.293,83.267,0.4812852]
[1773055756017,0.47745795,83.291,83.268,12.49070058]
[1773055756332,0.47745795,83.291,83.264,0.4812852]
[1773055756533,0.47745795,83.291,83.265,0.4812852]
[1773055759131,0.47745795,83.289,83.265,0.4812852]
[1773055760123,0.47745795,83.289,83.267,0.4812852]
[1773055761337,0.47745795,83.287,83.267,0.4812852]
[1773055764126,0.47745795,83.285,83.267,0.4812852]
[1773055765848,0.47745795,83.285,83.26,4.43113176]
[1773055765849,0.47745795,83.285,83.269,0.4812852]
[1773055766049,12.00681987,83.286,83.269,0.4812852]
[1773055766233,12.48427782,83.286,83.269,0.4812852]
[1773055766433,0.47745795,83.285,83.269,0.4812852]
[1773055767547,12.00681987,83.286,83.269,0.4812852]
[1773055767725,0.47745795,83.285,83.269,0.4812852]
[1773055768124,12.48360569,83.291,83.271,0.4812852]
[1773055768331,0.47745795,83.29,83.264,0.4812852]
[1773055769931,0.47745795,83.288,83.264,0.4812852]
[1773055770958,0.47745795,83.286,83.251,0.4812852]
[1773055771149,0.47745795,83.285,83.252,0.4812852]
[1773055771451,0.47745795,83.279,83.25,0.1]
[1773055772539,0.47745795,83.279,83.25,12.59317788]
[1773055773257,0.48237793,83.269,83.25,0.1]
[1773055776251,0.48237793,83.267,83.25,0.1]
[1773055778144,0.48237793,83.265,83.25,0.1]
[1773055778756,0.48237793,83.265,83.24,0.1]
[1773055779256,0.48237793,83.265,83.24,0.59264405]
[1773055780861,4.43113176,83.27,83.242,0.49264405]
[1773055780862,0.48237793,83.263,83.242,0.49264405]
[1773055781069,30.01993323,83.278,83.242,0.49264405]
[1773055781070,12.00970384,83.372,83.242,0.49264405]
[1773055781273,158.7476343,83.555,83.241,12.01331074]
[1773055781274,4.43113176,83.3,83.261,0.49264405]
[1773055781646,4.43113176,83.29,83.261,0.49264405]
[1773055782066,4.43113176,83.3,83.261,0.49264405]
[1773055782366,4.43113176,83.3,83.241,42.04658761]
[1773055782367,0.14216157,83.299,83.271,0.49264405]
[1773055782773,0.28432314,83.297,83.272,0.49264405]
[1773055783171,0.48237793,83.296,83.272,0.49264405]
[1773055785270,0.48237793,83.294,83.272,0.49264405]
[1773055785453,0.48237793,83.293,83.272,0.49264405]
[1773055785769,0.28432314,83.294,83.272,0.49264405]
[1773055785967,0.48237793,83.293,83.272,0.49264405]
[1773055787577,0.47495178,83.291,83.272,0.49264405]
[1773055787777,0.47495178,83.289,83.263,0.49999422]
[1773055790087,0.47495178,83.287,83.263,0.49999422]
[1773055790268,0.47495178,83.279,83.251,0.49999422]
[1773055792267,0.47495178,83.277,83.253,0.49999422]
[1773055794363,0.47495178,83.274,83.248,12.51227297]
[1773055794567,12.00826168,83.276,83.241,0.49999422]
[1773055794568,0.47495178,83.269,83.241,0.49999422]
[1773055795881,0.47495178,83.269,83.242,0.49999422]
[1773055796966,12.00941538,83.268,83.243,12.01302211]
[1773055797167,0.47495178,83.267,83.244,0.49999422]
[1773055799383,12.00941538,83.268,83.246,0.49999422]
[1773055799764,0.47495178,83.271,83.251,0.49999422]
[1773055800166,12.00897383,83.272,83.251,0.49999422]
[1773055800366,0.28432314,83.275,83.251,0.49999422]
[1773055800771,0.47495178,83.278,83.25,4.43113176]
[1773055800991,30.01776862,83.285,83.245,42.04456723]
[1773055800992,12.0071082,83.284,83.261,0.49999422]
[1773055802287,12.29071053,83.289,83.263,0.49999422]
[1773055802868,0.02669816,83.288,83.263,0.49999422]
[1773055805769,4.43113176,83.28,83.263,0.49999422]
[1773055806082,0.02669816,83.279,83.258,0.48665092]
[1773055806461,42.33337718,83.289,83.261,0.48665092]
[1773055806661,0.02669816,83.288,83.261,0.48665092]
[1773055806882,4.43113176,83.28,83.261,0.48665092]
[1773055807385,4.43113176,83.28,83.24,0.1]
[1773055807386,0.02669816,83.269,83.24,0.1]
[1773055807589,0.02669816,83.259,83.24,0.1]
[1773055807772,4.82477569,83.247,83.22,0.1]
[1773055807970,4.93452002,83.23,83.22,0.1]
[1773055808175,0.49866684,83.229,83.22,0.1]
[1773055808779,0.49866684,83.229,83.205,12.0184779]
[1773055808970,0.49866684,83.247,83.21,4.43585318]
[1773055809171,12.51116542,83.247,83.21,4.43585318]
[1773055809372,0.49866684,83.239,83.205,12.0184779]
[1773055809780,0.49866684,83.239,83.211,0.48499087]
[1773055812090,12.01374372,83.238,83.213,0.48499087]
[1773055812388,12.51241056,83.238,83.213,0.48499087]
[1773055813089,0.49866684,83.237,83.215,0.48499087]
[1773055814088,12.01374372,83.238,83.215,0.48499087]
[1773055815685,4.43585318,83.24,83.217,0.48499087]
[1773055819298,4.43585318,83.24,83.21,4.43585318]
[1773055819299,12.01359939,83.239,83.211,0.48499087]
[1773055819597,0.49866684,83.238,83.214,12.01707612]
[1773055819896,0.49866684,83.219,83.198,0.48499087]
[1773055820199,0.49866684,83.219,83.199,12.01933457]
[1773055820575,0.49866684,83.219,83.2,0.48499087]
[1773055820770,0.49866684,83.224,83.2,0.48499087]
[1773055821191,0.49866684,83.237,83.201,0.48499087]
[1773055821370,4.43585318,83.24,83.211,0.48499087]
[1773055821575,0.28432314,83.247,83.221,0.48499087]
[1773055822895,12.50966891,83.257,83.223,0.48499087]
[1773055823097,0.49866684,83.256,83.223,0.48499087]
[1773055823283,0.49866684,83.255,83.223,0.48499087]
[1773055824378,4.43585318,83.25,83.223,0.48499087]
[1773055825593,12.0121563,83.249,83.225,0.48499087]
[1773055826188,12.51082314,83.249,83.225,0.48499087]
[1773055826385,0.49866684,83.239,83.211,0.48499087]
[1773055827111,0.49866684,83.239,83.211,12.50263276]
[1773055827606,0.49866684,83.239,83.203,30.04665936]
[1773055827607,12.0128778,83.244,83.214,0.48499087]
[1773055830205,0.49866684,83.244,83.216,0.48499087]
[1773055830797,0.49866684,83.239,83.216,0.48499087]
[1773055830990,0.49866684,83.239,83.215,12.01706423]
[1773055831197,4.43585318,83.24,83.214,0.48499087]
[1773055831198,0.49866684,83.237,83.214,0.48499087]
[1773055832208,12.01374372,83.238,83.214,0.48499087]
[1773055833096,0.46014909,83.237,83.214,0.48499087]
[1773055833404,0.46014909,83.235,83.208,0.46464709]
[1773055834105,4.43585318,83.23,83.208,0.46464709]
[1773055834305,0.74447223,83.235,83.208,0.46464709]
[1773055834499,12.47361194,83.24,83.211,0.46464709]
[1773055834704,0.46014909,83.24,83.211,0.46464709]
[1773055835417,0.46014909,83.24,83.213,0.46464709]
[1773055836012,12.01359939,83.239,83.213,0.46464709]
[1773055836912,0.46014909,83.238,83.213,0.46464709]
[1773055837513,0.28432314,83.247,83.215,0.46464709]
[1773055837819,12.47155699,83.255,83.221,0.46464709]
[1773055838022,0.28432314,83.254,83.221,0.46464709]
[1773055838200,0.46014909,83.253,83.221,0.46464709]
[1773055838796,0.46014909,83.253,83.223,0.46464709]
[1773055841095,0.46014909,83.249,83.219,0.46464709]
[1773055843417,4.43585318,83.24,83.219,0.46464709]
[1773055843724,0.46014909,83.239,83.219,0.46464709]
[1773055844701,4.43585318,83.24,83.221,0.46464709]
[1773055844895,0.46014909,83.246,83.221,0.46464709]
[1773055846521,0.28432314,83.244,83.223,0.46464709]
[1773055846721,12.01163589,83.253,83.223,0.46464709]
[1773055847023,4.43585318,83.25,83.223,0.46464709]
[1773055847598,0.46014909,83.249,83.223,0.46464709]
[1773055848499,4.43585318,83.25,83.225,0.46464709]
[1773055849721,16.44790492,83.25,83.225,0.46464709]
[1773055851024,0.47423004,83.249,83.227,0.45111116]
[1773055851520,4.43585318,83.25,83.227,0.45111116]
[1773055852804,4.43585318,83.25,83.229,0.45111116]
[1773055853918,4.43585318,83.24,83.223,0.45111116]
[1773055854120,4.43585318,83.24,83.216,12.01688952]
[1773055854121,0.47423004,83.239,83.216,12.01688952]
[1773055854523,0.47423004,83.239,83.216,12.46800068]
[1773055854709,0.47423004,83.239,83.217,0.45111116]
[1773055854904,12.01374372,83.238,83.218,12.46774217]
[1773055855124,0.47423004,83.242,83.219,0.45111116]
[1773055856206,0.47423004,83.247,83.221,0.45111116]
[1773055856405,12.01158689,83.253,83.221,0.45111116]
[1773055857114,12.48581693,83.253,83.221,0.45111116]
[1773055857430,0.47423004,83.252,83.221,0.45111116]
[1773055857825,12.01186772,83.251,83.223,0.45111116]
[1773055859819,4.43585318,83.26,83.231,0.45111116]
[1773055860021,0.47423004,83.259,83.231,0.45111116]
[1773055863812,0.48329023,83.257,83.233,0.47782539]
[1773055865718,0.48329023,83.257,83.224,30.0394117]
[1773055865719,0.48329023,83.257,83.235,0.47782539]
[1773055866455,4.43585318,83.27,83.235,0.47782539]
[1773055866742,12.00855008,83.274,83.241,0.47782539]
[1773055866928,12.49184031,83.274,83.241,0.47782539]
[1773055867237,0.48329023,83.273,83.241,0.47782539]
[1773055867538,4.43585318,83.27,83.241,0.47782539]
[1773055867713,12.00927115,83.269,83.243,0.47782539]
[1773055868118,0.48329023,83.268,83.243,0.47782539]
[1773055868342,4.43376576,83.26,83.243,0.47782539]
[1773055869232,0.48329023,83.264,83.243,0.47782539]
[1773055869424,12.00927115,83.269,83.243,0.47782539]
[1773055870032,12.00927115,83.269,83.245,0.47782539]
[1773055872237,4.43376576,83.26,83.247,0.47782539]
[1773055873140,0.48329023,83.268,83.247,0.47782539]
[1773055873339,4.91705599,83.26,83.235,0.47782539]
[1773055873539,0.48329023,83.259,83.235,0.47782539]
[1773055873926,0.48329023,83.264,83.235,0.47782539]
[1773055874443,0.48329023,83.264,83.214,60.08590737]
[1773055874444,4.43376576,83.28,83.241,0.47782539]
[1773055875639,0.48329023,83.279,83.243,0.47782539]
[1773055875943,4.43376576,83.28,83.243,0.47782539]
[1773055876848,12.0078291,83.279,83.245,0.47782539]
[1773055878046,0.48329023,83.278,83.247,0.47782539]
[1773055879355,0.48329023,83.269,83.232,0.47782539]
[1773055880646,0.48329023,83.267,83.234,0.47782539]
[1773055883753,0.48329023,83.267,83.236,0.47782539]
[1773055884542,0.48329023,83.265,83.236,0.47782539]
[1773055885756,0.48329023,83.265,83.238,0.47782539]
[1773055887036,0.48329023,83.263,83.238,0.47782539]
[1773055887733,0.48329023,83.277,83.24,4.91159115]
[1773055887955,0.48329023,83.277,83.241,0.47782539]
[1773055888661,0.48329023,83.275,83.241,0.47782539]
[1773055889361,0.28432314,83.276,83.241,0.47782539]
[1773055889362,0.48329023,83.269,83.241,0.47782539]
[1773055890061,0.48329023,83.267,83.243,0.47782539]
[1773055894241,0.49717411,83.277,83.245,0.48281635]
[1773055894545,47.99054396,83.35,83.251,0.48281635]
[1773055894546,0.49717411,83.282,83.251,0.48281635]
[1773055895562,0.49717411,83.295,83.261,0.48281635]
[1773055896350,0.49717411,83.293,83.263,0.48281635]
[1773055897749,12.00595495,83.292,83.264,12.00999231]
[1773055897953,0.49717411,83.291,83.265,0.48281635]
[1773055898464,4.43376576,83.29,83.265,0.48281635]
[1773055898654,0.49717411,83.289,83.265,0.48281635]
[1773055901463,0.49717411,83.287,83.261,0.48281635]
[1773055904670,12.00681987,83.286,83.262,12.0102808]
[1773055904851,0.49717411,83.285,83.263,0.48281635]
[1773055906271,0.49717411,83.285,83.25,0.49074752]
[1773055906272,0.48864181,83.279,83.25,0.49074752]
[1773055906478,0.48864181,83.279,83.251,12.01186772]
[1773055906657,0.48864181,83.277,83.251,0.49074752]
[1773055908577,12.00751936,83.282,83.251,0.49074752]
[1773055908774,0.48864181,83.283,83.253,0.49074752]
[1773055908975,0.48864181,83.293,83.261,0.49074752]
[1773055910273,12.00578168,83.294,83.271,0.49074752]
[1773055910861,12.28941329,83.298,83.273,0.49074752]
[1773055911785,0.48864181,83.301,83.273,0.49074752]
[1773055912079,0.48864181,83.318,83.291,0.49074752]
[1773055912284,0.48864181,83.318,83.291,0.31242242]
[1773055913083,12.00161794,83.323,83.3,4.43376576]
[1773055913456,12.00161794,83.323,83.3,4.25543616]
[1773055913663,0.48864181,83.322,83.292,12.00595495]
[1773055914155,0.48864181,83.32,83.293,0.49074752]
[1773055915986,12.49070616,83.319,83.295,0.49074752]
[1773055917283,0.48864181,83.318,83.295,0.49074752]
[1773055918181,12.00235246,83.317,83.294,12.00566667]
[1773055918365,0.48864181,83.316,83.294,11.39909816]
[1773055918767,12.49047089,83.321,83.294,11.39909816]
[1773055919665,0.48864181,83.321,83.294,11.39909816]
[1773055919864,0.48864181,83.324,83.3,4.43376576]
[1773055920284,4.43376576,83.33,83.3,4.43376576]
[1773055920285,0.48864181,83.334,83.303,0.49074752]
[1773055920488,0.48864181,83.334,83.303,0.32097367]
[1773055920790,0.48864181,83.329,83.303,0.32097367]
[1773055922191,0.48864181,83.329,83.304,12.00422548]
[1773055922372,0.48864181,83.329,83.305,0.44780445]
[1773055923983,0.48864181,83.329,83.307,0.44780445]
[1773055924367,0.49756305,83.327,83.302,0.44780445]
[1773055924572,0.49756305,83.327,83.304,0.44780445]
[1773055924879,0.49756305,83.339,83.311,0.44780445]
[1773055926065,0.49756305,83.358,83.331,0.44780445]
[1773055926266,3.69383402,83.374,83.312,42.01075474]
[1773055926267,0.49756305,83.348,83.321,0.44780445]
[1773055926469,0.49756305,83.347,83.321,0.44780445]
[1773055928474,0.49756305,83.345,83.321,12.44951322]
[1773055929487,0.49756305,83.345,83.322,0.44780445]
[1773055930090,0.49756305,83.345,83.321,12.00170877]
[1773055930091,0.49756305,83.357,83.331,0.44780445]
[1773055930591,0.49756305,83.356,83.33,12.00036101]
[1773055931678,0.49756305,83.354,83.33,12.00036101]
[1773055932288,0.49756305,83.354,83.331,0.44780445]
[1773055934098,0.49756305,83.352,83.327,0.44780445]
[1773055934497,0.49756305,83.349,83.318,0.44780445]
[1773055934688,0.49756305,83.349,83.31,34.43373554]
[1773055934689,0.49756305,83.349,83.321,0.44780445]
[1773055934891,0.49756305,83.357,83.33,4.42565868]
[1773055935100,0.49756305,83.357,83.331,0.44780445]
[1773055935791,0.49756305,83.349,83.32,4.42565868]
[1773055936297,0.49756305,83.347,83.321,12.00177626]
[1773055936599,0.49756305,83.347,83.322,0.44780445]
[1773055939403,0.49756305,83.347,83.324,0.44780445]
[1773055940383,0.49756305,83.356,83.331,0.44780445]
[1773055941092,0.2,83.36,83.341,0.44780445]
[1773055941502,0.2,83.36,83.343,0.44780445]
[1773055942599,0.2,83.36,83.345,0.44780445]
[1773055944689,0.2,83.36,83.347,0.44780445]
[1773055945204,0.69756305,83.37,83.35,4.42565868]
[1773055945401,0.49756305,83.369,83.347,0.24780445]
[1773055945907,0.49756305,83.369,83.342,12.24648844]
[1773055945908,0.49756305,83.368,83.342,12.24648844]
[1773055947994,0.49756305,83.368,83.343,0.24780445]
[1773055950108,0.49756305,83.368,83.344,12.24626864]
[1773055950703,0.49756305,83.366,83.344,11.99846419]
[1773055950904,0.49756305,83.359,83.32,4.42565868]
[1773055951206,0.49756305,83.359,83.321,0.24780445]
[1773055951713,0.49756305,83.349,83.316,0.24780445]
[1773055951902,0.49756305,83.349,83.321,0.24780445]
[1773055952507,4.42565868,83.36,83.323,0.24780445]
[1773055952508,0.49756305,83.354,83.323,0.24780445]
[1773055952808,0.49756305,83.354,83.331,0.24780445]
[1773055953906,0.49756305,83.354,83.33,4.42565868]
[1773055953907,0.49756305,83.354,83.332,12.24799645]
[1773055954094,0.49756305,83.354,83.333,0.24780445]
[1773055954702,0.48870549,83.36,83.333,0.24780445]
[1773055956089,0.48870549,83.358,83.334,11.999904]
[1773055956588,29.98788489,83.367,83.34,4.42565868]
[1773055956589,0.48870549,83.367,83.34,4.42565868]
[1773055956789,0.48870549,83.367,83.335,0.24780445]
[1773055956991,0.48870549,83.367,83.334,11.999904]
[1773055957487,4.62565868,83.37,83.35,4.42565868]
[1773055957488,0.68870549,83.37,83.35,4.42565868]
[1773055957797,0.68870549,83.37,83.316,60.01211766]
[1773055957798,0.48870549,83.359,83.311,0.24780445]
[1773055958114,0.48870549,83.339,83.312,12.00307278]
[1773055958414,0.48870549,83.339,83.312,12.25087723]
[1773055958602,0.48870549,83.339,83.313,0.24780445]
[1773055958799,0.48870549,83.339,83.301,0.24780445]
[1773055959925,0.48870549,83.337,83.303,12.00433124]
[1773055961217,0.48870549,83.329,83.303,12.00433124]
[1773055961401,0.48870549,83.329,83.291,42.02134683]
[1773055961592,0.48870549,83.329,83.292,0.24780445]
[1773055962507,0.48870549,83.328,83.3,4.42565868]
[1773055964202,0.48870549,83.328,83.301,0.24780445]
[1773055964797,0.48870549,83.337,83.31,4.42565868]
[1773055965002,0.48870549,83.337,83.311,0.24780445]
[1773055965810,0.47730019,83.335,83.312,12.00307278]
[1773055969322,0.47730019,83.35,83.313,0.24780445]
[1773055969518,11.99678506,83.356,83.331,0.24780445]
[1773055969711,0.47730019,83.355,83.326,0.24780445]
[1773055970111,0.47730019,83.355,83.32,4.67346313]
[1773055971035,0.47730019,83.349,83.312,0.24780445]
[1773055971325,11.99932803,83.338,83.311,12.00321686]
[1773055971509,0.47730019,83.337,83.311,12.00321686]
[1773055973329,0.47730019,83.327,83.294,0.24780445]
[1773055973532,0.47730019,83.327,83.294,12.0056066]
[1773055973745,0.47730019,83.309,83.283,12.00725238]
[1773055974113,0.47730019,83.309,83.28,4.42565868]
[1773055974310,0.47730019,83.309,83.282,0.24780445]
[1773055974614,0.47730019,83.309,83.29,4.42565868]
[1773055974819,0.47730019,83.316,83.291,0.24780445]
[1773055975311,0.47730019,83.316,83.291,12.00609909]
[1773055975312,12.47987861,83.316,83.291,12.00609909]
[1773055975518,0.47730019,83.315,83.291,12.00609909]
[1773055977838,0.47730019,83.313,83.281,42.02639256]
[1773055978241,0.47730019,83.313,83.282,0.24780445]
[1773055978443,0.47730019,83.313,83.29,4.42565868]
[1773055978739,0.47730019,83.311,83.283,12.25505683]
[1773055978922,0.47730019,83.311,83.284,0.24780445]
[1773055980119,0.47730019,83.311,83.285,12.25476848]
[1773055980724,0.47730019,83.311,83.285,12.00696403]
[1773055980922,0.47730019,83.311,83.286,0.24780445]
[1773055983078,0.482283,83.349,83.301,0.24780445]
[1773055983221,0.482283,83.349,83.31,4.42565868]
[1773055983421,0.482283,83.339,83.31,4.42565868]
[1773055983623,0.482283,83.339,83.287,42.02336498]
[1773055983624,0.482283,83.339,83.301,0.24780445]
[1773055984019,0.482283,83.329,83.3,4.42565868]
[1773055986441,0.482283,83.327,83.301,12.0046578]
[1773055990245,0.482283,83.325,83.301,12.0046578]
[1773055990839,12.00105609,83.326,83.302,0.24780445]
[1773055991034,0.482283,83.331,83.31,4.42776705]
[1773055992141,0.482283,83.331,83.311,12.00321686]
[1773055992932,0.482283,83.331,83.312,0.24780445]
[1773055993155,12.48193471,83.336,83.32,4.42776705]
[1773055993540,0.482283,83.352,83.321,0.24780445]
[1773055993754,0.482283,83.351,83.321,0.24780445]
[1773055994450,0.482283,83.349,83.321,12.2494522]
[1773055995534,7.59444183,83.353,83.321,12.2494522]
[1773055995535,0.482283,83.347,83.322,0.24780445]
[1773055995733,0.482283,83.347,83.325,0.24780445]